bitfinex-derivatives/quotes_BTCF0:USTF0_20220102
["timestamp","ask_amount","ask_price","bid_price","bid_amount"]
[1641084877290,0.56649852,47621.0,47616.0,0.23051567]
[1641084877491,0.37449852,47621.0,47616.0,0.23051567]
[1641084878091,0.56849852,47621.0,47616.0,0.23051567]
[1641084879392,0.55449852,47621.0,47616.0,0.23051567]
[1641084880092,0.74749852,47621.0,47616.0,0.23051567]
[1641084880292,0.3940064,47621.0,47616.0,0.23051567]
[1641084881395,0.2010064,47621.0,47616.0,0.23051567]
[1641084881698,0.37449852,47621.0,47616.0,0.23051567]
[1641084882097,0.56849852,47621.0,47616.0,0.23051567]
[1641084882295,0.54749212,47621.0,47616.0,0.41051567]
[1641084882495,0.54749212,47621.0,47619.0,0.18]
[1641084882896,0.194,47621.0,47620.0,0.001]
[1641084883296,1.17830708,47627.0,47620.0,0.010794]
[1641084883497,1.17830708,47627.0,47626.0,0.18]
[1641084883697,1.17830708,47627.0,47626.0,0.26576]
[1641084883897,1.17830708,47627.0,47626.0,0.275554]
[1641084884096,0.59089757,47632.0,47626.0,0.465554]
[1641084884298,0.59089757,47632.0,47631.0,0.001]
[1641084884896,1.17830708,47636.0,47631.0,0.001]
[1641084885097,1.17830708,47636.0,47632.0,0.001]
[1641084885298,0.14033567,47639.0,47632.0,0.001]
[1641084885698,1.17830708,47641.0,47632.0,0.181]
[1641084885899,1.19930412,47642.0,47637.0,0.001]
[1641084886200,1.17830708,47642.0,47641.0,0.001]
[1641084887200,1.17830708,47642.0,47641.0,0.46167134]
[1641084887399,1.17830708,47646.0,47641.0,0.46167134]
[1641084887599,1.17830708,47646.0,47645.0,0.001]
[1641084887804,1.17830708,47646.0,47645.0,0.181]
[1641084888201,1.17830708,47646.0,47645.0,0.369]
[1641084888401,1.17830708,47646.0,47645.0,0.189]
[1641084888602,0.08948384,47650.0,47645.0,0.189]
[1641084888804,0.08948384,47650.0,47645.0,0.188]
[1641084889304,0.08948384,47650.0,47646.0,0.14033567]
[1641084889706,0.11047719,47650.0,47646.0,0.14033567]
[1641084890205,0.11047719,47650.0,47646.0,0.32633567]
[1641084891107,0.08948384,47649.0,47646.0,0.32633567]
[1641084891504,0.08948384,47649.0,47646.0,0.14033567]
[1641084892206,0.08948384,47649.0,47646.0,0.32733567]
[1641084893504,0.08948384,47649.0,47646.0,0.14033567]
[1641084893909,0.83051359,47650.0,47646.0,0.14033567]
[1641084894107,0.35598454,47647.0,47646.0,0.14033567]
[1641084894308,0.35598454,47647.0,47646.0,0.32833567]
[1641084894707,0.35598454,47648.0,47646.0,0.32833567]
[1641084894908,0.35598454,47648.0,47646.0,0.32733567]
[1641084895410,0.35598454,47648.0,47646.0,0.14033567]
[1641084896211,0.35598454,47648.0,47646.0,0.32833567]
[1641084896410,0.59330757,47649.0,47646.0,0.32833567]
[1641084896611,0.02,47651.0,47646.0,0.32833567]
[1641084897613,0.37598454,47651.0,47646.0,0.14033567]
[1641084898313,0.37598454,47651.0,47646.0,0.32633567]
[1641084898914,0.02,47651.0,47646.0,0.32633567]
[1641084900313,0.04099296,47651.0,47646.0,0.51233567]
[1641084901514,0.04099296,47651.0,47646.0,0.14033567]
[1641084902323,0.04099296,47651.0,47646.0,0.32633567]
[1641084903517,0.04099296,47651.0,47646.0,0.14033567]
[1641084903718,0.3969775,47651.0,47646.0,0.14033567]
[1641084904220,0.3969775,47651.0,47646.0,0.32633567]
[1641084905617,0.3969775,47651.0,47646.0,0.14033567]
[1641084906221,0.3969775,47651.0,47646.0,0.32633567]
[1641084906623,0.04099296,47651.0,47646.0,0.32633567]
[1641084907424,0.04099296,47651.0,47646.0,0.14033567]
[1641084908323,0.04099296,47651.0,47646.0,0.32633567]
[1641084909626,0.04099296,47651.0,47646.0,0.14033567]
[1641084910229,0.3969775,47651.0,47646.0,0.32633567]
[1641084910729,0.04099296,47651.0,47646.0,0.32633567]
[1641084910930,1.41451292,47647.0,47646.0,0.32633567]
[1641084911129,1.41451292,47647.0,47646.0,0.32733567]
[1641084911529,1.41451292,47647.0,47646.0,0.14133567]
[1641084912241,1.41451292,47647.0,47646.0,0.32933567]
[1641084913542,1.41451292,47647.0,47646.0,0.14133567]
[1641084914246,1.41451292,47647.0,47646.0,0.32933567]
[1641084915547,1.41451292,47647.0,47646.0,0.14133567]
[1641084916145,1.41451292,47647.0,47646.0,0.14033567]
[1641084916445,1.41451292,47647.0,47646.0,0.32833567]
[1641084916751,2.69851292,47647.0,47641.0,0.83323405]
[1641084916945,0.18,47642.0,47639.0,1.19120768]
[1641084917344,0.32033567,47642.0,47639.0,1.19120768]
[1641084917745,1.73484859,47642.0,47639.0,1.19120768]
[1641084917948,1.73484859,47642.0,47635.0,1.19120768]
[1641084918149,0.18,47636.0,47635.0,1.19120768]
[1641084918444,0.24783,47636.0,47635.0,1.19120768]
[1641084918845,1.48234292,47636.0,47635.0,1.19120768]
[1641084919046,1.48234292,47636.0,47628.0,1.19120768]
[1641084919345,0.14033567,47633.0,47628.0,1.19120768]
[1641084920050,1.30571143,47631.0,47627.0,1.67014946]
[1641084920948,1.1870121,47628.0,47627.0,1.67014946]
[1641084921148,1.1870121,47628.0,47627.0,1.67114946]
[1641084922250,1.3730121,47628.0,47627.0,1.82214946]
[1641084922652,0.186,47628.0,47627.0,1.82214946]
[1641084923352,0.27548161,47628.0,47627.0,1.82214946]
[1641084923754,0.08948161,47628.0,47627.0,1.67114946]
[1641084924353,0.27548161,47628.0,47627.0,1.82214946]
[1641084924756,0.27548161,47628.0,47627.0,0.63094178]
[1641084926256,0.46148161,47628.0,47627.0,0.78194178]
[1641084927058,0.46148161,47628.0,47627.0,1.97314946]
[1641084927458,0.27548161,47628.0,47627.0,1.67114946]
[1641084927658,0.08948161,47628.0,47627.0,1.67114946]
[1641084928360,0.27548161,47628.0,47627.0,0.63094178]
[1641084929461,0.186,47628.0,47627.0,1.82214946]
[1641084929660,0.08948161,47630.0,47627.0,1.67114946]
[1641084929862,0.08948161,47630.0,47627.0,1.67014946]
[1641084930162,0.08948161,47628.0,47627.0,1.67014946]
[1641084930362,0.08948161,47628.0,47627.0,1.77914946]
[1641084930763,0.27748161,47630.0,47627.0,1.77914946]
[1641084930962,0.27748161,47630.0,47627.0,1.77814946]
[1641084931561,0.08948161,47630.0,47627.0,1.67014946]
[1641084931963,1.30571143,47631.0,47628.0,0.47894178]
[1641084931964,0.08948161,47629.0,47628.0,0.47894178]
[1641084932163,0.08948161,47629.0,47628.0,0.47994178]
[1641084932664,0.27848161,47630.0,47628.0,0.47994178]
[1641084932863,0.27848161,47630.0,47628.0,0.47894178]
[1641084933563,1.55484859,47633.0,47629.0,1.07567194]
[1641084934262,1.74684859,47633.0,47629.0,1.07567194]
[1641084934462,0.33233567,47633.0,47629.0,1.07567194]
[1641084935664,1.95726654,47634.0,47632.0,0.181]
[1641084935867,2.21652241,47641.0,47633.0,0.001]
[1641084936165,2.21652241,47641.0,47638.0,0.001]
[1641084936365,2.14292965,47641.0,47640.0,0.001]
[1641084937469,1.54967208,47641.0,47634.0,0.32033567]
[1641084938371,0.186,47641.0,47639.0,0.59673016]
[1641084939170,0.186,47641.0,47640.0,0.001]
[1641084939571,0.14033567,47642.0,47640.0,0.001]
[1641084939774,0.14033567,47642.0,47641.0,0.001]
[1641084940173,0.14033567,47642.0,47641.0,0.164]
[1641084940377,0.32733567,47642.0,47641.0,0.164]
[1641084941474,0.18,47648.0,47641.0,0.001]
[1641084941673,0.18,47648.0,47639.0,0.59673016]
[1641084942274,1.42060352,47645.0,47637.0,0.59673016]
[1641084942474,1.42060352,47645.0,47642.0,0.001]
[1641084942674,1.42060352,47645.0,47644.0,0.001]
[1641084943274,0.372,47648.0,47644.0,0.001]
[1641084943474,0.372,47648.0,47637.0,0.59673016]
[1641084943777,0.18,47648.0,47637.0,0.59673016]
[1641084943974,0.02099421,47649.0,47637.0,0.59673016]
[1641084944174,1.18394802,47638.0,47637.0,0.59673016]
[1641084944375,1.18394802,47638.0,47637.0,0.59773016]
[1641084945077,1.18394802,47638.0,47637.0,1.15192731]
[1641084945780,0.16033567,47651.0,47637.0,1.18271171]
[1641084945990,0.16033567,47651.0,47640.0,0.18]
[1641084946189,0.35333567,47651.0,47643.0,0.18]
[1641084946393,0.35333567,47651.0,47641.0,0.009794]
[1641084946991,0.02099343,47650.0,47641.0,0.009794]
[1641084947193,0.02099343,47650.0,47641.0,0.60652416]
[1641084948192,0.21199343,47650.0,47641.0,0.60652416]
[1641084949293,0.08948534,47649.0,47641.0,0.60652416]
[1641084949994,1.30246308,47645.0,47641.0,0.60652416]
[1641084950195,1.30246308,47645.0,47644.0,0.001]
[1641084952198,1.48946308,47645.0,47644.0,0.162]
[1641084953101,1.57894842,47645.0,47644.0,0.162]
[1641084953500,1.57894842,47645.0,47644.0,0.001]
[1641084953700,1.39194842,47645.0,47644.0,0.001]
[1641084954205,1.57894842,47645.0,47644.0,0.162]
[1641084954401,0.27648534,47645.0,47644.0,0.162]
[1641084955702,0.08948534,47645.0,47644.0,0.14133567]
[1641084956104,0.08948534,47645.0,47644.0,0.14033567]
[1641084956304,0.24548534,47645.0,47644.0,0.32733567]
[1641084957106,1.34113561,47645.0,47644.0,0.93017963]
[1641084957304,1.34113561,47645.0,47644.0,0.93117963]
[1641084957505,1.34113561,47645.0,47644.0,0.74417963]
[1641084957805,1.34113561,47645.0,47644.0,1.57909822]
[1641084957806,0.08948534,47645.0,47644.0,1.57909822]
[1641084958204,0.17448534,47645.0,47644.0,1.76809822]
[1641084958603,1.27013561,47645.0,47644.0,0.93317963]
[1641084959505,1.18513561,47645.0,47644.0,0.74417963]
[1641084959704,1.27462095,47645.0,47644.0,0.74417963]
[1641084960206,1.38762095,47645.0,47644.0,0.93117963]
[1641084960606,1.29813561,47645.0,47644.0,0.93117963]
[1641084960806,1.29813561,47645.0,47644.0,1.52750559]
[1641084961611,1.38762095,47645.0,47644.0,0.92466163]
[1641084961813,1.27462095,47645.0,47644.0,0.73766163]
[1641084962214,1.43762095,47645.0,47644.0,0.92366163]
[1641084962412,1.43762095,47645.0,47644.0,0.32733567]
[1641084962613,1.43762095,47645.0,47644.0,2.12285743]
[1641084963415,1.43762095,47645.0,47644.0,0.93017963]
[1641084963623,1.27462095,47645.0,47644.0,0.74417963]
[1641084964213,1.33413561,47645.0,47644.0,0.93017963]
[1641084965017,1.42362095,47645.0,47644.0,0.93017963]
[1641084965616,1.27462095,47645.0,47644.0,0.74417963]
[1641084966019,0.08948534,47645.0,47644.0,0.74417963]
[1641084966219,0.26048534,47645.0,47644.0,0.93017963]
[1641084967624,0.08948534,47645.0,47644.0,0.74417963]
[1641084967821,1.18513561,47646.0,47644.0,0.14133567]
[1641084968022,1.18513561,47646.0,47645.0,0.001]
[1641084968221,0.35532096,47650.0,47645.0,0.001]
[1641084968422,0.35532096,47650.0,47649.0,0.001]
[1641084968823,0.35532096,47650.0,47644.0,0.32733567]
[1641084969123,0.35532096,47649.0,47644.0,0.32733567]
[1641084969524,0.35532096,47649.0,47644.0,0.14033567]
[1641084969822,0.35532096,47648.0,47644.0,0.14033567]
[1641084970226,0.35532096,47648.0,47644.0,0.26733567]
[1641084971124,0.35532096,47647.0,47644.0,0.26733567]
[1641084971324,0.35532096,47647.0,47646.0,0.001]
[1641084971525,0.35532096,47647.0,47644.0,0.14033567]
[1641084971725,0.18,47645.0,47639.0,0.73588864]
[1641084972326,0.372,47645.0,47639.0,0.73588864]
[1641084972928,0.372,47645.0,47639.0,0.59555297]
[1641084973527,0.82908225,47643.0,47639.0,0.59555297]
[1641084973728,0.59220161,47641.0,47631.0,0.59555297]
[1641084974226,0.78120161,47641.0,47631.0,0.59555297]
[1641084974630,0.35483646,47637.0,47630.0,0.0209942]
[1641084975130,0.18,47635.0,47629.0,0.59555297]
[1641084975334,0.20100096,47635.0,47629.0,0.59555297]
[1641084976329,0.53533663,47635.0,47629.0,0.59555297]
[1641084976528,0.35483646,47633.0,47629.0,0.59555297]
[1641084976730,0.35483646,47633.0,47626.0,0.14033567]
[1641084977933,0.18,47630.0,47626.0,0.14033567]
[1641084978334,0.18,47627.0,47626.0,0.14033567]
[1641084978533,0.20100431,47627.0,47624.0,0.59555297]
[1641084979132,0.20100431,47627.0,47621.0,0.59555297]
[1641084979849,0.02100431,47627.0,47621.0,0.59555297]
[1641084980151,0.02100431,47627.0,47617.0,1.19110594]
[1641084980152,0.35483646,47625.0,47617.0,1.20841837]
[1641084980751,0.35483646,47625.0,47618.0,0.11933501]
[1641084980963,0.14033567,47626.0,47618.0,0.6030714]
[1641084981151,0.14033567,47626.0,47619.0,0.59555297]
[1641084981953,0.49517213,47626.0,47618.0,1.19862437]
[1641084982153,0.18,47624.0,47618.0,1.19862437]
[1641084982553,0.69117213,47626.0,47618.0,1.19862437]
[1641084983056,0.69117213,47626.0,47618.0,0.59555297]
[1641084983254,0.69117213,47626.0,47617.0,0.60534697]
[1641084983654,0.49517213,47626.0,47618.0,0.11933613]
[1641084984260,0.33733567,47626.0,47618.0,0.6030502]
[1641084984464,0.33733567,47626.0,47619.0,0.59555297]
[1641084985156,0.33733567,47626.0,47618.0,1.19860317]
[1641084985560,0.14033567,47626.0,47618.0,1.19860317]
[1641084985959,0.49517213,47626.0,47618.0,1.19860317]
[1641084986259,0.69117213,47626.0,47618.0,1.19860317]
[1641084986660,0.33633567,47626.0,47618.0,0.6030502]
[1641084986860,0.59220161,47620.0,47619.0,1.31231377]
[1641084987060,0.59220161,47620.0,47619.0,1.31331377]
[1641084987560,0.82908225,47621.0,47619.0,1.31331377]
[1641084987760,0.08951765,47620.0,47618.0,1.91536397]
[1641084987962,0.08951765,47620.0,47619.0,0.001]
[1641084988362,0.14051765,47620.0,47619.0,0.001]
[1641084988760,0.051,47620.0,47619.0,0.001]
[1641084989162,0.64024903,47620.0,47619.0,0.001]
[1641084989662,0.58924903,47620.0,47619.0,0.001]
[1641084989862,0.58924903,47620.0,47619.0,1.9169762]
[1641084990263,0.59824903,47620.0,47619.0,1.9169762]
[1641084991363,0.59824903,47620.0,47619.0,0.6040502]
[1641084991563,0.58924903,47620.0,47619.0,0.6040502]
[1641084991762,0.58924903,47621.0,47619.0,0.6040502]
[1641084991962,0.58924903,47621.0,47620.0,0.001]
[1641084992363,0.76624903,47621.0,47620.0,0.001]
[1641084992563,0.26651659,47621.0,47620.0,0.6040502]
[1641084993165,0.177,47621.0,47620.0,0.6040502]
[1641084993364,0.177,47621.0,47620.0,1.91696017]
[1641084993566,0.82908225,47622.0,47620.0,1.91696017]
[1641084993764,0.82908225,47622.0,47620.0,1.91596017]
[1641084994368,0.99008225,47622.0,47620.0,1.91596017]
[1641084994767,0.99008225,47622.0,47621.0,0.6030502]
[1641084995366,1.17008225,47622.0,47621.0,0.6030502]
[1641084995566,0.82908225,47622.0,47621.0,0.6030502]
[1641084996368,1.02408225,47622.0,47621.0,0.6030502]
[1641084996565,0.195,47622.0,47621.0,0.6030502]
[1641084996866,0.28452072,47622.0,47621.0,0.6030502]
[1641084997068,0.46452072,47622.0,47621.0,0.6030502]
[1641084997367,0.28452072,47622.0,47621.0,0.6030502]
[1641084997566,0.08952072,47622.0,47621.0,0.6030502]
[1641084997769,0.26952072,47622.0,47621.0,0.6030502]
[1641084997967,0.08952072,47622.0,47621.0,0.6030502]
[1641084998370,0.28152072,47622.0,47621.0,0.6030502]
[1641084998768,0.192,47622.0,47616.0,1.31290997]
[1641084999168,0.192,47622.0,47615.0,0.14033567]
[1641084999569,0.02100562,47623.0,47615.0,0.14033567]
[1641085000471,0.21500562,47623.0,47615.0,0.14033567]
[1641085001673,0.18,47621.0,47615.0,0.14033567]
[1641085002271,0.375,47621.0,47615.0,0.14033567]
[1641085002670,0.375,47621.0,47610.0,0.009794]
[1641085002870,0.375,47621.0,47605.0,0.02100562]
[1641085003071,0.18,47620.0,47612.0,0.14033567]
[1641085004370,0.375,47620.0,47612.0,0.14033567]
[1641085005572,0.18,47620.0,47612.0,0.14033567]
[1641085006374,0.376,47620.0,47612.0,0.14033567]
[1641085007574,0.18,47620.0,47612.0,0.14033567]
[1641085008173,0.16134129,47623.0,47612.0,0.14033567]
[1641085008375,0.195,47620.0,47612.0,0.14033567]
[1641085009675,0.14033567,47623.0,47612.0,0.14033567]
[1641085010274,0.33333567,47623.0,47612.0,0.14033567]
[1641085010477,0.18,47621.0,47612.0,0.14033567]
[1641085010673,0.02100568,47622.0,47612.0,0.14033567]
[1641085011375,0.18,47620.0,47612.0,0.14033567]
[1641085012276,0.374,47620.0,47612.0,0.14033567]
[1641085012675,0.194,47620.0,47612.0,0.14033567]
[1641085012876,0.374,47620.0,47612.0,0.14033567]
[1641085013077,0.194,47620.0,47612.0,0.14033567]
[1641085013477,0.35211818,47616.0,47613.0,2.03149113]
[1641085013679,0.35211818,47616.0,47615.0,0.001]
[1641085014278,0.52311818,47616.0,47615.0,0.001]
[1641085015179,0.52311818,47616.0,47615.0,0.60064867]
[1641085015579,0.35211818,47616.0,47615.0,0.60064867]
[1641085016382,0.52311818,47616.0,47615.0,0.60064867]
[1641085017583,0.35211818,47616.0,47615.0,0.60064867]
[1641085017783,0.53211818,47616.0,47615.0,0.60064867]
[1641085018085,0.18,47616.0,47615.0,0.60064867]
[1641085018286,1.28524598,47616.0,47615.0,0.60064867]
[1641085018986,0.46352262,47616.0,47615.0,0.60064867]
[1641085019285,0.60385829,47616.0,47615.0,0.60064867]
[1641085019488,0.40985829,47616.0,47615.0,0.60064867]
[1641085019986,0.22985829,47616.0,47615.0,0.60064867]
[1641085020188,0.22985829,47616.0,47615.0,1.7944138]
[1641085020388,0.42385829,47616.0,47615.0,1.7944138]
[1641085020988,0.42385829,47616.0,47615.0,0.60064867]
[1641085021589,0.22985829,47616.0,47615.0,0.60064867]
[1641085022289,0.42085829,47616.0,47615.0,0.60064867]
[1641085022488,1.5947488,47616.0,47615.0,1.79444583]
[1641085024293,1.7867488,47616.0,47615.0,1.79444583]
[1641085025296,0.61285829,47616.0,47615.0,1.79444583]
[1641085025596,0.42185829,47616.0,47615.0,1.79444583]
[1641085025794,0.22985829,47616.0,47615.0,1.79444583]
[1641085026295,0.42385829,47616.0,47615.0,1.79444583]
[1641085026597,0.42385829,47616.0,47615.0,0.60064867]
[1641085027596,0.22985829,47616.0,47615.0,0.60064867]
[1641085028196,0.41085829,47616.0,47615.0,0.72064867]
[1641085028396,0.32133567,47616.0,47615.0,0.72064867]
[1641085028597,0.32133567,47616.0,47615.0,1.31709867]
[1641085029701,0.14033567,47616.0,47615.0,1.19709867]
[1641085029900,0.14033567,47616.0,47615.0,1.43567867]
[1641085030298,0.30833567,47616.0,47615.0,1.61267867]
[1641085031201,0.30833567,47616.0,47615.0,0.77764867]
[1641085031602,0.14033567,47616.0,47615.0,0.60064867]
[1641085032401,0.31133567,47616.0,47615.0,0.77764867]
[1641085032802,0.31133567,47616.0,47615.0,1.61264828]
[1641085033614,0.14033567,47616.0,47615.0,1.43564828]
[1641085033821,0.37895567,47616.0,47615.0,1.43464828]
[1641085034013,0.39996417,47616.0,47609.0,1.3121868]
[1641085034213,0.39996417,47616.0,47614.0,1.19283539]
[1641085034214,0.59496417,47616.0,47614.0,1.19283539]
[1641085035310,0.59496417,47616.0,47610.0,1.3121868]
[1641085035613,0.39996417,47616.0,47610.0,1.3121868]
[1641085035811,0.82136166,47615.0,47610.0,0.83508726]
[1641085036031,0.02100965,47613.0,47611.0,0.5964909]
[1641085036211,0.18,47612.0,47611.0,0.5964909]
[1641085036510,0.02100965,47613.0,47611.0,0.5964909]
[1641085036711,0.18,47612.0,47611.0,0.5964909]
[1641085037611,0.18,47612.0,47610.0,0.5964909]
[1641085037811,0.76613471,47612.0,47610.0,0.5964909]
[1641085038312,0.96113471,47612.0,47610.0,0.5964909]
[1641085038512,0.58613471,47611.0,47609.0,0.5964909]
[1641085040217,0.78413471,47611.0,47609.0,0.5964909]
[1641085041114,0.78413471,47611.0,47609.0,0.189794]
[1641085041315,0.198,47611.0,47610.0,0.83508726]
[1641085041514,0.198,47611.0,47610.0,0.89754726]
[1641085041714,0.35184979,47612.0,47610.0,0.06246]
[1641085041918,0.35184979,47614.0,47610.0,1.25531815]
[1641085042316,0.145,47612.0,47610.0,1.25531815]
[1641085043534,0.145,47612.0,47611.0,1.19285815]
[1641085043733,0.35184979,47611.0,47610.0,0.06246]
[1641085043935,0.35184979,47611.0,47609.0,0.189794]
[1641085044135,0.35184979,47611.0,47610.0,0.11935415]
[1641085044335,0.51384979,47611.0,47610.0,0.11935415]
[1641085045735,0.35184979,47611.0,47610.0,0.11935415]
[1641085046235,0.51884979,47611.0,47610.0,0.11935415]
[1641085047636,0.35184979,47611.0,47610.0,0.11935415]
[1641085048336,0.51684979,47611.0,47610.0,0.11935415]
[1641085049637,0.35184979,47611.0,47610.0,0.11935415]
[1641085049838,0.35184979,47611.0,47610.0,0.56327653]
[1641085050241,0.51684979,47611.0,47610.0,0.56327653]
[1641085051738,0.35184979,47611.0,47610.0,0.56327653]
[1641085051939,0.35184979,47611.0,47610.0,0.44392238]
[1641085052141,0.58613471,47612.0,47610.0,0.44392238]
[1641085052340,0.165,47611.0,47610.0,0.44392238]
[1641085053741,0.58613471,47612.0,47610.0,0.56327995]
[1641085054242,0.58613471,47612.0,47610.0,0.44392238]
[1641085054542,0.75213471,47612.0,47610.0,0.44392238]
[1641085055345,0.58613471,47611.0,47610.0,0.44392238]
[1641085055942,0.58613471,47612.0,47610.0,0.44392238]
[1641085056144,0.02267556,47616.0,47611.0,0.02100183]
[1641085056343,2.083718,47666.0,47615.0,0.369]
[1641085056545,1.32269992,47641.0,47629.0,0.18]
[1641085056743,1.32269992,47641.0,47640.0,0.18]
[1641085056945,0.4900709,47647.0,47640.0,0.24059]
[1641085057243,0.3750709,47647.0,47646.0,0.20098677]
[1641085057444,0.18,47663.0,47646.0,0.181]
[1641085057643,0.18,47663.0,47644.0,0.12061118]
[1641085057845,1.104,47665.0,47656.0,0.14033567]
[1641085058047,0.18,47657.0,47656.0,0.14033567]
[1641085058244,1.30499246,47657.0,47651.0,0.14033567]
[1641085058543,0.18,47652.0,47651.0,0.14033567]
[1641085059544,0.08591572,47656.0,47651.0,0.14033567]
[1641085059745,0.18,47654.0,47651.0,0.14033567]
[1641085060147,0.02099243,47653.0,47651.0,0.14033567]
[1641085060445,0.18,47653.0,47651.0,0.14033567]
[1641085062349,0.192,47653.0,47651.0,0.14033567]
[1641085063553,0.192,47653.0,47652.0,0.001]
[1641085063749,0.14033567,47657.0,47652.0,0.181]
[1641085063950,0.14033567,47657.0,47656.0,0.001]
[1641085064350,0.31733567,47657.0,47656.0,0.001]
[1641085065354,0.31733567,47657.0,47651.0,0.14033567]
[1641085066256,0.49433567,47657.0,47656.0,0.001]
[1641085066456,0.49433567,47657.0,47651.0,0.14033567]
[1641085067757,0.14033567,47657.0,47651.0,0.14033567]
[1641085068360,0.32833567,47657.0,47651.0,0.14033567]
[1641085069856,0.14033567,47657.0,47651.0,0.14033567]
[1641085070356,0.32933567,47657.0,47651.0,0.14033567]
[1641085070960,0.18,47656.0,47651.0,0.14033567]
[1641085071159,0.009794,47655.0,47651.0,0.14033567]
[1641085072161,0.03355797,47656.0,47651.0,0.14033567]
[1641085072361,0.196,47655.0,47651.0,0.14033567]
[1641085073665,0.009794,47656.0,47651.0,0.14033567]
[1641085074267,0.205794,47656.0,47651.0,0.14033567]
[1641085074467,1.4192407,47655.0,47652.0,1.54880297]
[1641085075069,1.6250347,47656.0,47652.0,1.54880297]
[1641085075769,1.4290347,47656.0,47652.0,1.54880297]
[1641085076372,1.6240347,47656.0,47651.0,0.73471423]
[1641085076672,1.6240347,47656.0,47652.0,1.5488026]
[1641085077686,1.4290347,47656.0,47652.0,1.5488026]
[1641085078287,1.6250347,47656.0,47652.0,1.5488026]
[1641085079689,0.009794,47656.0,47652.0,0.59437856]
[1641085079890,1.1839475,47653.0,47651.0,0.14033567]
[1641085080190,1.1839475,47653.0,47652.0,0.001]
[1641085082291,1.3149475,47653.0,47652.0,0.001]
[1641085082492,0.131,47653.0,47652.0,0.001]
[1641085083193,1.3149475,47653.0,47652.0,0.001]
[1641085083794,1.1839475,47653.0,47652.0,0.001]
[1641085084299,1.3499475,47653.0,47652.0,0.001]
[1641085085495,0.166,47653.0,47652.0,0.001]
[1641085085696,1.1839475,47654.0,47652.0,0.001]
[1641085085897,1.1839475,47654.0,47653.0,0.001]
[1641085086399,0.197,47654.0,47653.0,0.001]
[1641085087599,0.18,47655.0,47653.0,0.001]
[1641085087799,0.18,47655.0,47651.0,0.14033567]
[1641085087999,0.09391,47655.0,47651.0,0.14033567]
[1641085088199,0.18,47652.0,47651.0,0.14033567]
[1641085088399,0.18,47652.0,47651.0,0.14133567]
[1641085090102,0.02099209,47653.0,47651.0,0.001]
[1641085090301,0.02099209,47653.0,47652.0,0.001]
[1641085091201,0.20099209,47653.0,47652.0,0.001]
[1641085091605,0.02099209,47653.0,47652.0,0.001]
[1641085091803,0.20099209,47653.0,47652.0,0.001]
[1641085092304,0.39399209,47653.0,47652.0,0.001]
[1641085093804,0.20099209,47653.0,47652.0,0.001]
[1641085094503,0.39299209,47653.0,47652.0,0.001]
[1641085094703,0.21299209,47653.0,47652.0,0.001]
[1641085095104,0.39299209,47653.0,47652.0,0.001]
[1641085095706,0.20099209,47653.0,47652.0,0.001]
[1641085095906,0.02099209,47653.0,47652.0,0.001]
[1641085096105,0.20099209,47653.0,47652.0,0.001]
[1641085096307,0.39199209,47653.0,47652.0,0.001]
[1641085097707,0.20099209,47653.0,47652.0,0.001]
[1641085098511,0.21199209,47653.0,47652.0,0.001]
[1641085099810,0.02099209,47653.0,47652.0,0.001]
[1641085100412,0.21199209,47653.0,47652.0,0.001]
[1641085101826,0.02099209,47653.0,47652.0,0.001]
[1641085102518,0.21299209,47653.0,47652.0,0.001]
[1641085103320,0.39299209,47653.0,47652.0,0.001]
[1641085103725,0.20099209,47653.0,47652.0,0.001]
[1641085104127,0.02099209,47653.0,47652.0,0.001]
[1641085104622,0.21299209,47653.0,47652.0,0.001]
[1641085105822,0.02099209,47653.0,47652.0,0.001]
[1641085106522,0.21299209,47653.0,47652.0,0.001]
[1641085107725,0.02099209,47653.0,47652.0,0.001]
[1641085108426,0.21299209,47653.0,47652.0,0.001]
[1641085109529,0.29176209,47653.0,47652.0,0.001]
[1641085109827,1.104,47652.0,47647.0,0.59437856]
[1641085110025,0.18,47648.0,47647.0,0.59437856]
[1641085110226,0.20099566,47648.0,47647.0,0.59437856]
[1641085110927,0.20099566,47648.0,47647.0,0.59537856]
[1641085111348,0.20099566,47648.0,47642.0,0.59437856]
[1641085111540,0.18,47643.0,47642.0,0.59437856]
[1641085111742,0.18,47643.0,47642.0,0.59537856]
[1641085112543,0.371,47643.0,47642.0,0.001]
[1641085113845,1.57390495,47643.0,47642.0,0.001]
[1641085114445,1.76390495,47643.0,47642.0,0.001]
[1641085115244,1.70390495,47643.0,47642.0,0.001]
[1641085115446,1.58390495,47643.0,47642.0,0.001]
[1641085115949,1.39390495,47643.0,47642.0,0.001]
[1641085116347,0.08949526,47643.0,47642.0,1.92234445]
[1641085116547,0.25349526,47643.0,47642.0,1.92234445]
[1641085116747,0.25349526,47643.0,47642.0,1.99495445]
[1641085117355,0.164,47643.0,47642.0,1.16280571]
[1641085117551,0.99522846,47643.0,47642.0,1.16280571]
[1641085117750,0.83122846,47643.0,47642.0,1.16280571]
[1641085118151,0.92072372,47643.0,47642.0,2.35158963]
[1641085118551,0.99772372,47643.0,47642.0,2.35158963]
[1641085119052,0.077,47643.0,47642.0,2.35158963]
[1641085119653,0.16649526,47643.0,47642.0,2.35158963]
[1641085119852,0.08949526,47643.0,47642.0,2.35158963]
[1641085120552,0.23149526,47643.0,47642.0,2.35158963]
[1641085121753,0.08949526,47643.0,47642.0,2.35158963]
[1641085122453,0.09149526,47643.0,47642.0,2.35158963]
[1641085122854,0.83322846,47643.0,47642.0,1.16280571]
[1641085123053,0.83322846,47643.0,47642.0,1.09019571]
[1641085123755,0.83122846,47643.0,47642.0,1.09019571]
[1641085123956,0.92072372,47643.0,47642.0,1.09019571]
[1641085124458,1.05172372,47643.0,47642.0,1.09019571]
[1641085124659,1.40792331,47643.0,47642.0,1.09019571]
[1641085125360,2.2363744,47643.0,47642.0,1.09019571]
[1641085125561,1.04894635,47643.0,47642.0,1.09019571]
[1641085125760,0.91794635,47643.0,47642.0,1.09019571]
[1641085126461,1.05094635,47643.0,47642.0,1.09019571]
[1641085127068,0.96145109,47643.0,47642.0,1.09019571]
[1641085127863,0.82845109,47643.0,47642.0,1.09019571]
[1641085128566,0.98945109,47643.0,47642.0,1.09019571]
[1641085129065,0.161,47643.0,47642.0,1.09019571]
[1641085129264,0.75292935,47643.0,47642.0,1.09019571]
[1641085129665,0.161,47643.0,47642.0,1.09019571]
[1641085129867,0.82845109,47643.0,47642.0,2.28295935]
[1641085130568,0.99745109,47643.0,47642.0,1.09019571]
[1641085130969,0.169,47643.0,47642.0,1.09019571]